bitfinex-derivatives/quotes_SOLF0:USTF0_20250311
["timestamp","ask_amount","ask_price","bid_price","bid_amount"]
[1741724081843,0.05798622,127.24,127.21,0.05352821]
[1741724082047,28.76223478,127.23,127.16,2.1442]
[1741724082253,7.8627,127.22,127.17,7.8652]
[1741724082451,28.76223478,127.23,127.16,35.1042]
[1741724082750,61.72223478,127.26,127.16,35.1042]
[1741724083144,0.05112682,127.22,127.2,0.05551736]
[1741724083745,0.05112682,127.22,127.2,7.91901736]
[1741724084051,0.05112682,127.22,127.2,0.05551736]
[1741724085461,0.05112682,127.22,127.2,7.91911736]
[1741724085856,0.05112682,127.22,127.2,0.05551736]
[1741724086054,7.91422682,127.22,127.2,0.05551736]
[1741724086755,0.05112682,127.22,127.2,0.05551736]
[1741724087360,7.8632,127.21,127.2,0.05551736]
[1741724087561,0.05112682,127.22,127.2,0.05551736]
[1741724089760,7.8632,127.21,127.2,0.05551736]
[1741724092170,7.8632,127.21,127.2,152.27504105]
[1741724094766,0.05112682,127.22,127.2,83.60416859]
[1741724094972,0.05112682,127.22,127.18,50.02877246]
[1741724094973,512.554973,127.21,127.03,118.66181967]
[1741724095269,19.61355712,127.13,127.04,32.96]
[1741724095470,61.72223478,127.14,127.04,32.96]
[1741724095669,28.76223478,127.14,127.04,32.96]
[1741724095870,7.8685,127.13,127.04,69.59553478]
[1741724096067,0.05616603,127.1,127.08,0.05379487]
[1741724096367,7.8686,127.13,127.08,32.96]
[1741724096565,0.05622407,127.1,127.08,32.96]
[1741724096769,0.05622407,127.1,127.09,0.05947239]
[1741724099568,261.66104619,127.1,127.09,0.05947239]
[1741724100377,253.79104619,127.1,127.09,0.05947239]
[1741724101477,261.66104619,127.1,127.09,0.05947239]
[1741724102871,7.92622407,127.1,127.09,0.05947239]
[1741724104478,0.05622407,127.1,127.04,32.98]
[1741724104676,28.76223478,127.09,127.04,32.98]
[1741724104880,7.92622407,127.1,127.09,88.74659765]
[1741724106279,7.8706,127.09,127.08,0.0592576]
[1741724106483,28.81845885,127.1,127.08,0.0592576]
[1741724106985,36.68885885,127.1,127.08,0.0592576]
[1741724107286,28.81845885,127.1,127.08,0.0592576]
[1741724107882,28.81845885,127.1,127.09,130.17793917]
[1741724108585,36.68875885,127.1,127.09,130.17793917]
[1741724109993,7.8706,127.09,127.08,0.0592576]
[1741724111084,28.81845885,127.1,127.08,0.0592576]
[1741724111284,0.05622407,127.1,127.08,0.0592576]
[1741724111790,7.8706,127.09,127.08,0.0592576]
[1741724112685,0.05622407,127.1,127.08,0.0592576]
[1741724114084,7.8683,127.13,127.08,0.0592576]
[1741724114389,192.0,127.15,127.08,0.0592576]
[1741724114585,30.77573478,127.16,127.1,7.8697]
[1741724114784,30.77573478,127.16,127.1,32.98]
[1741724115288,7.8694,127.11,127.1,32.98]
[1741724115788,28.76223478,127.12,127.09,0.0580631]
[1741724116185,28.76223478,127.1,127.09,0.0580631]
[1741724116487,36.63223478,127.1,127.09,0.0580631]
[1741724116785,7.87,127.1,127.09,0.0580631]
[1741724116989,28.81668685,127.12,127.09,0.0580631]
[1741724118088,7.8696,127.11,127.09,0.0580631]
[1741724118687,7.8696,127.11,127.09,7.9285631]
[1741724118887,36.68568685,127.12,127.09,0.0580631]
[1741724119085,0.05445207,127.12,127.09,0.0580631]
[1741724119282,0.05445207,127.12,127.11,7.8694]
[1741724120591,7.92325207,127.12,127.1,12.0012]
[1741724120790,0.05445207,127.12,127.1,12.0012]
[1741724121280,0.05445207,127.12,127.1,4.1314]
[1741724121787,7.92365207,127.12,127.1,4.1314]
[1741724121983,0.05445207,127.12,127.1,4.1314]
[1741724122291,28.81668685,127.12,127.09,0.0580631]
[1741724122591,7.87,127.1,127.09,0.0580631]
[1741724123689,7.8695,127.11,127.09,0.0580631]
[1741724124086,7.8698,127.11,127.09,0.0580631]
[1741724124485,28.81668685,127.12,127.09,0.0580631]
[1741724124688,7.8694,127.11,127.09,0.0580631]
[1741724126492,28.81668685,127.12,127.09,0.0580631]
[1741724126992,7.87,127.1,127.09,0.0580631]
[1741724127187,36.63223478,127.1,127.09,0.0580631]
[1741724127384,28.76223478,127.1,127.05,12.0087]
[1741724128296,28.76223478,127.08,127.02,32.96]
[1741724128485,28.76223478,127.08,127.06,0.05385755]
[1741724128787,28.81340519,127.08,127.06,0.05385755]
[1741724128991,7.8718,127.07,127.06,0.05385755]
[1741724129288,28.81340519,127.08,127.01,3.9469]
[1741724129487,28.76223478,127.06,127.01,3.9469]
[1741724129887,7.874,127.04,127.01,11.8223]
[1741724130398,0.05783473,127.04,127.02,7.8745]
[1741724131086,0.05783473,127.04,127.01,3.99716125]
[1741724132794,0.05783473,127.04,127.01,11.87266125]
[1741724132994,0.05783473,127.04,127.01,3.99716125]
[1741724133295,7.93193473,127.04,127.01,11.87256125]
[1741724133689,0.05783473,127.04,127.02,7.8746]
[1741724134494,0.05783473,127.04,127.01,11.87236125]
[1741724134793,0.05783473,127.04,127.01,3.99716125]
[1741724135695,0.05783473,127.04,127.02,7.8746]
[1741724135888,28.76223478,127.08,127.01,3.99716125]
[1741724136289,7.8724,127.07,127.01,3.99716125]
[1741724136586,30.77173478,127.1,127.01,3.9469]
[1741724136792,2.0095,127.1,127.01,3.9469]
[1741724136990,0.05310332,127.07,127.04,0.05861164]
[1741724137192,61.74223478,127.12,127.05,32.98]
[1741724137394,7.8707,127.09,127.05,32.98]
[1741724137593,28.76223478,127.12,127.05,32.98]
[1741724137896,7.8699,127.11,127.07,7.8716]
[1741724138095,259.66,127.13,127.07,7.8716]
[1741724138293,0.05530753,127.11,127.09,0.05124741]
[1741724138495,7.8705,127.1,127.09,0.05124741]
[1741724139491,7.92490753,127.11,127.09,0.05124741]
[1741724139892,0.05530753,127.11,127.09,0.05124741]
[1741724140101,0.05530753,127.11,127.1,32.96]
[1741724140494,7.8669,127.16,127.1,32.96]
[1741724140701,7.8669,127.16,127.1,35.1049]
[1741724140897,28.76223478,127.18,127.1,35.1049]
[1741724141298,7.8667,127.16,127.1,35.1049]
[1741724141601,0.0596311,127.14,127.13,7.868]
[1741724142903,0.0596311,127.14,127.12,0.0518766]
[1741724142904,7.8659,127.17,127.14,7.8673]
[1741724143400,7.8651,127.18,127.15,7.8663]
[1741724143701,32.89133478,127.24,127.14,32.96]
[1741724143900,28.76223478,127.24,127.14,61.72223478]
[1741724144105,0.05116171,127.2,127.18,0.05780897]
[1741724144400,0.05116171,127.2,127.18,33.01780897]
[1741724144602,7.8617,127.24,127.2,7.8633]
[1741724144997,2.0544,127.25,127.2,7.8633]
[1741724145196,61.72223478,127.28,127.21,7.8632]
[1741724145401,32.96,127.28,127.22,32.94]
[1741724145903,0.02697054,127.26,127.24,0.05109296]
[1741724147003,0.02697054,127.26,127.24,7.91229296]
[1741724147204,0.02697054,127.26,127.24,0.05109296]
[1741724149123,7.88717054,127.26,127.24,0.05109296]
[1741724149306,0.02697054,127.26,127.24,0.05109296]
[1741724150001,7.8607,127.25,127.24,0.05109296]
[1741724153507,7.88737054,127.26,127.24,0.05109296]
[1741724153705,0.02697054,127.26,127.24,0.05109296]
[1741724154309,7.8607,127.25,127.24,0.05109296]
[1741724158702,7.88737054,127.26,127.24,0.05109296]
[1741724159310,7.8607,127.25,127.24,0.05109296]
[1741724162608,0.02697054,127.26,127.24,32.95109296]
[1741724163212,7.8607,127.25,127.24,32.95109296]
[1741724163609,0.02697054,127.26,127.24,32.95109296]
[1741724164513,7.8607,127.25,127.24,32.95109296]
[1741724164814,7.8607,127.25,127.24,0.05109296]
[1741724167012,7.88747054,127.26,127.24,0.05109296]
[1741724167609,7.8607,127.25,127.24,0.05109296]
[1741724167815,0.02697054,127.26,127.24,0.05109296]
[1741724168814,7.88737054,127.26,127.24,0.05109296]
[1741724169413,0.02697054,127.26,127.24,7.91199296]
[1741724170114,0.02697054,127.26,127.25,40.7607]
[1741724170319,18.0176169,127.32,127.25,32.9]
[1741724170712,7.8582,127.29,127.26,7.8597]
[1741724171116,18.0176169,127.3,127.25,32.9]
[1741724171421,15.7145,127.31,127.26,8.431e-05]
[1741724171618,194.153,127.31,127.21,32.9]
[1741724171823,18.0176169,127.25,127.21,32.9]
[1741724172215,18.0176169,127.23,127.19,2.1656]
[1741724172820,7.91288431,127.22,127.2,0.05681771]
[1741724173022,0.04998431,127.22,127.2,0.05681771]
[1741724174425,0.04998431,127.22,127.2,7.92031771]
[1741724174626,0.04998431,127.22,127.2,0.05681771]
[1741724175322,0.04998431,127.22,127.21,7.8632]
[1741724175627,0.04998431,127.22,127.2,0.05681771]
[1741724175825,0.04998431,127.22,127.2,7.92031771]
[1741724176019,0.04998431,127.22,127.2,0.05681771]
[1741724177024,7.8632,127.21,127.2,0.05681771]
[1741724177225,25.8808169,127.21,127.2,0.05681771]
[1741724178126,25.8808169,127.21,127.2,1.771e-05]
[1741724179029,28.0033169,127.21,127.2,1.771e-05]
[1741724179726,0.04998431,127.22,127.2,1.771e-05]
[1741724183434,0.04998431,127.22,127.2,32.88001771]
[1741724183628,7.8604,127.26,127.22,7.8622]
[1741724183833,7.8604,127.26,127.2,32.88]
[1741724184033,27.9999169,127.27,127.23,7.8614]
[1741724184237,9.9823,127.27,127.2,50.8976169]
[1741724184540,2.1225,127.27,127.2,50.8976169]
[1741724184736,0.05069191,127.25,127.23,7.8616]
[1741724185436,0.05069191,127.25,127.24,7.8613]
[1741724185831,0.05069191,127.25,127.22,0.05610473]
[1741724186432,0.05069191,127.25,127.24,7.8613]
[1741724187538,192.0,127.3,127.24,32.88]
[1741724187743,20.1320169,127.31,127.24,32.88]
[1741724188138,7.8579,127.3,127.24,32.88]
[1741724188647,9.9718,127.31,127.26,0.05996111]
[1741724188846,2.1144,127.31,127.26,0.05996111]
[1741724189049,2.1144,127.31,127.27,7.8589]
[1741724189453,18.0176169,127.33,127.26,0.05996111]
[1741724189750,18.0176169,127.33,127.28,7.8585]
[1741724189950,7.8573,127.31,127.25,2.0837]
[1741724190147,7.8573,127.31,127.29,0.05406394]
[1741724190348,18.0176169,127.33,127.29,0.05406394]
[1741724191549,7.8576,127.3,127.29,0.05406394]
[1741724191942,7.8576,127.3,127.29,6.394e-05]
[1741724192347,7.8607,127.25,127.24,43.33315686]
[1741724193352,7.8604,127.26,127.24,43.33315686]
[1741724193554,7.91866126,127.26,127.24,43.33315686]
[1741724193952,0.05826126,127.26,127.24,43.33315686]
[1741724194155,0.05826126,127.26,127.23,32.91580446]
[1741724194648,18.07587816,127.26,127.23,32.91580446]
[1741724194856,18.07587816,127.26,127.23,0.05580446]
[1741724195051,0.05826126,127.26,127.23,0.05580446]
[1741724195251,7.91876126,127.26,127.23,0.05580446]
[1741724195451,0.05826126,127.26,127.23,0.05580446]
[1741724196355,7.8611,127.25,127.23,0.05580446]
[1741724196656,0.05826126,127.26,127.23,0.05580446]
[1741724197855,7.861,127.25,127.23,0.05580446]
[1741724198755,0.05826126,127.26,127.23,0.05580446]
[1741724200456,7.8613,127.24,127.23,0.05580446]
[1741724204259,7.8613,127.24,127.18,20.0129169]
[1741724204260,18.0176169,127.24,127.14,18.0176169]
[1741724204457,18.0176169,127.22,127.17,43.67328921]
[1741724204663,18.0176169,127.2,127.17,10.83328921]
[1741724204860,7.865,127.18,127.17,10.83328921]
[1741724206259,18.0176169,127.18,127.16,32.55786864]
[1741724206463,7.8656,127.17,127.16,32.55786864]
[1741724207959,18.0176169,127.18,127.11,37.0298]
[1741724208667,7.8659,127.17,127.11,37.0298]
[1741724208869,192.0,127.21,127.12,18.0176169]
[1741724209064,192.0,127.21,127.14,18.0176169]
[1741724209367,0.05850872,127.18,127.15,32.89197583]
[1741724209566,0.05850872,127.18,127.16,7.8659]
[1741724209961,7.92370872,127.18,127.15,32.89197583]
[1741724210368,0.05850872,127.18,127.15,32.89197583]
[1741724210666,0.05850872,127.18,127.15,0.05197583]
[1741724211368,18.07612562,127.18,127.15,0.05197583]
[1741724212561,0.05850872,127.18,127.15,0.05197583]
[1741724213861,0.05850872,127.18,127.16,7.8663]
[1741724214273,0.05850872,127.18,127.15,0.05197583]
[1741724214963,7.8658,127.17,127.15,0.05197583]
[1741724215571,0.05850872,127.18,127.15,0.05197583]
[1741724216172,7.866,127.17,127.15,0.05197583]
[1741724216673,7.92390872,127.18,127.15,7.91887583]
[1741724216873,0.05850872,127.18,127.15,0.05197583]
[1741724217372,7.8656,127.17,127.15,0.05197583]
[1741724217572,0.05850872,127.18,127.15,0.05197583]
[1741724218567,7.866,127.17,127.15,0.05197583]
[1741724219572,0.05850872,127.18,127.15,0.05197583]
[1741724220172,7.8657,127.17,127.15,0.05197583]
[1741724220573,0.05850872,127.18,127.16,7.8659]
[1741724221478,0.05850872,127.18,127.15,0.05197583]
[1741724222272,0.05850872,127.18,127.17,7.8656]
[1741724224781,7.8636,127.21,127.17,7.8656]
[1741724225085,20.1488169,127.24,127.17,2.0245]
[1741724225086,2.1312,127.24,127.17,2.0245]
[1741724225379,50.8576169,127.27,127.2,7.8634]
[1741724225681,50.8576169,127.27,127.19,32.84]
[1741724225887,18.0176169,127.27,127.21,7.8627]
[1741724226090,7.9160976,127.24,127.22,0.05247171]
[1741724227381,7.8619,127.23,127.22,0.05247171]
[1741724232889,7.9160976,127.24,127.22,0.05247171]
[1741724233190,0.0544976,127.24,127.22,0.05247171]
[1741724233490,7.8619,127.23,127.22,0.05247171]
[1741724234993,7.9159976,127.24,127.22,0.05247171]
[1741724235396,0.0544976,127.24,127.22,0.05247171]
[1741724235797,0.0544976,127.24,127.22,7.91477171]
[1741724236699,7.9159976,127.24,127.22,7.91477171]
[1741724237096,0.0544976,127.24,127.22,7.91477171]
[1741724237298,0.0544976,127.24,127.23,7.8619]
[1741724237497,0.0544976,127.24,127.22,0.05247171]
[1741724237798,0.0544976,127.24,127.22,7.91477171]
[1741724240903,0.0544976,127.24,127.23,7.8619]
[1741724244112,192.0,127.3,127.26,7.8596]
[1741724244309,277.5376169,127.31,127.23,4.475]
[1741724244500,18.0176169,127.29,127.23,4.475]
[1741724244911,277.5376169,127.31,127.23,4.475]
[1741724245209,0.05450873,127.28,127.26,0.05744615]
[1741724245407,7.8595,127.27,127.26,0.05744615]
[1741724245605,0.05450873,127.28,127.26,7.91714615]
[1741724246710,0.05450873,127.28,127.26,0.05744615]
[1741724248413,7.91370873,127.28,127.26,0.05744615]
[1741724248614,7.91370873,127.28,127.26,7.91754615]
[1741724248815,0.05450873,127.28,127.26,0.05744615]
[1741724249110,25.8771169,127.27,127.26,0.05744615]
[1741724249512,7.8595,127.27,127.26,0.05744615]
[1741724250210,19.38799224,127.27,127.26,0.05744615]
[1741724250617,11.52849224,127.27,127.21,32.78]
[1741724250818,11.52849224,127.24,127.21,32.78]
[1741724251315,7.8622,127.23,127.21,32.78]
[1741724251512,11.52849224,127.25,127.21,32.78]
[1741724251712,0.05421709,127.23,127.21,44.3676234]
[1741724252219,7.8605,127.26,127.23,7.8615]
[1741724252620,7.91576391,127.26,127.23,7.8615]
[1741724253822,0.05526391,127.26,127.23,7.8615]
[1741724254017,7.8607,127.25,127.23,7.8615]
[1741724254208,0.05526391,127.26,127.22,32.76]
[1741724254412,7.8617,127.24,127.22,32.76]
[1741724254819,0.05526391,127.26,127.22,40.6223]
[1741724255019,0.05526391,127.26,127.22,32.76]
[1741724255321,0.05526391,127.26,127.23,7.8617]
[1741724255621,0.05526391,127.26,127.22,32.76]
[1741724255921,0.05526391,127.26,127.24,7.8609]
[1741724256322,0.05526391,127.26,127.24,7.91139856]
[1741724257526,0.05526391,127.26,127.25,7.8607]
[1741724258023,0.05526391,127.26,127.24,0.05049856]
[1741724259121,0.05526391,127.26,127.25,7.8607]
[1741724260514,24.66070127,127.34,127.24,18.06509983]
[1741724260718,7.8575,127.31,127.28,7.8585]
[1741724260920,7.8575,127.31,127.27,32.76]
[1741724261331,7.858,127.3,127.27,32.76]
[1741724261625,0.05361464,127.3,127.27,32.81439628]
[1741724261822,0.05361464,127.3,127.28,7.8583]
[1741724264830,0.05361464,127.3,127.27,32.81439628]
[1741724266731,0.05361464,127.3,127.28,7.8588]
[1741724267031,0.05361464,127.3,127.27,32.81439628]
[1741724267730,0.05361464,127.3,127.28,7.8585]
[1741724267930,0.05361464,127.3,127.27,32.81439628]
[1741724268434,7.8585,127.29,127.27,32.81439628]
[1741724268733,0.05361464,127.3,127.27,32.81439628]
[1741724269129,0.05361464,127.3,127.28,7.8586]
[1741724269427,0.05361464,127.3,127.27,32.81439628]
[1741724271534,50.77460127,127.36,127.27,32.81439628]
[1741724271728,18.01460127,127.36,127.27,32.76]
[1741724271934,2.1772,127.37,127.32,18.01460127]
[1741724272232,7.8551,127.34,127.33,32.74]
[1741724272430,18.01460127,127.36,127.3,40.5973]
[1741724272630,18.01460127,127.36,127.32,0.05153113]
[1741724272936,7.8558,127.33,127.32,0.05153113]
[1741724273436,18.01460127,127.36,127.32,0.05153113]
[1741724273736,7.8557,127.34,127.32,0.05153113]
[1741724274434,19.37166502,127.34,127.32,0.05153113]
[1741724274837,19.37076502,127.35,127.32,7.90793113]
[1741724275035,13.69316502,127.37,127.32,11.56749615]
[1741724275238,11.51596502,127.35,127.32,0.05153113]
[1741724275540,19.37176502,127.33,127.32,0.05153113]
[1741724276331,19.37096502,127.35,127.32,0.05153113]
[1741724276534,7.855,127.35,127.32,0.05153113]
[1741724276932,11.51596502,127.36,127.32,0.05153113]
[1741724277133,13.69316502,127.37,127.32,11.56749615]
[1741724277529,7.8542,127.36,127.33,7.8557]
[1741724278139,7.8542,127.36,127.33,19.37166502]
[1741724278533,7.8545,127.35,127.33,11.51596502]
[1741724278733,11.51596502,127.36,127.32,0.05153113]
[1741724278937,11.51596502,127.34,127.32,0.05153113]
[1741724279138,19.37176502,127.33,127.32,0.05153113]
[1741724279736,11.51596502,127.33,127.27,43.40506555]
[1741724279937,7.8588,127.28,127.27,43.40506555]
[1741724280437,11.51596502,127.29,127.27,43.40506555]
[1741724280629,11.51596502,127.3,127.27,51.26446555]
[1741724280829,2.1233,127.35,127.27,51.26446555]
[1741724280830,11.51596502,127.31,127.27,51.26446555]
[1741724281035,0.05708642,127.3,127.27,51.32266281]
[1741724281236,0.05708642,127.3,127.27,43.46326281]
[1741724281438,0.05708642,127.3,127.27,0.05819726]
[1741724281738,7.91508642,127.3,127.27,7.91759726]
[1741724281938,0.05708642,127.3,127.27,0.05819726]
[1741724282438,7.8586,127.29,127.27,0.05819726]
[1741724282641,0.05708642,127.3,127.27,0.05819726]
[1741724283539,0.05708642,127.3,127.27,7.91739726]
[1741724283740,0.05708642,127.3,127.27,0.05819726]
[1741724284736,0.05708642,127.3,127.28,7.8588]
[1741724284932,0.05708642,127.3,127.27,0.05819726]
[1741724285436,0.05708642,127.3,127.29,7.8582]
[1741724285835,0.05708642,127.3,127.28,11.51596502]
[1741724286039,7.91478642,127.3,127.28,11.51596502]
[1741724286239,0.05708642,127.3,127.28,11.51596502]
[1741724286841,0.05708642,127.3,127.27,0.05819726]
[1741724287345,7.91488642,127.3,127.27,0.05819726]
[1741724287537,0.05708642,127.3,127.27,11.57416228]
[1741724288343,0.05708642,127.3,127.27,0.05819726]
[1741724288544,0.05708642,127.3,127.28,7.8584]
[1741724288736,0.05708642,127.3,127.27,0.05819726]
[1741724289747,0.05708642,127.3,127.28,7.8588]
[1741724290644,0.05708642,127.3,127.27,0.05819726]
[1741724292751,7.91498642,127.3,127.27,0.05819726]
[1741724293158,7.91478642,127.3,127.27,7.91739726]
[1741724293652,0.05708642,127.3,127.27,0.05819726]
[1741724294356,0.05708642,127.3,127.28,7.8583]
[1741724294746,0.05708642,127.3,127.27,0.05819726]
[1741724295456,0.05708642,127.3,127.28,7.8585]
[1741724295851,0.05708642,127.3,127.27,7.91729726]
[1741724296255,7.91498642,127.3,127.27,7.91729726]
[1741724296652,0.05708642,127.3,127.27,0.05819726]
[1741724296854,7.91498642,127.3,127.27,0.05819726]
[1741724297049,7.91498642,127.3,127.27,7.91729726]
[1741724297556,0.05708642,127.3,127.27,0.05819726]
[1741724298360,0.05708642,127.3,127.28,7.8585]
[1741724299261,7.8585,127.29,127.27,0.05819726]
[1741724299759,7.8588,127.28,127.27,0.05819726]
[1741724300058,17.9958017,127.29,127.24,43.40506555]
[1741724300254,7.8607,127.25,127.24,43.40506555]
[1741724300962,25.8565017,127.25,127.24,43.40506555]
[1741724301154,25.8565017,127.25,127.24,39.89316555]
[1741724301462,25.8565017,127.25,127.24,36.30927794]
[1741724302256,7.8613,127.24,127.23,0.05059511]
[1741724303459,7.8629,127.22,127.19,32.7]
[1741724303963,7.8622,127.23,127.19,32.7]
[1741724304362,7.861,127.25,127.18,10.9051979]
[1741724304566,0.05594275,127.22,127.2,0.05877178]
[1741724304758,17.9958017,127.27,127.2,0.05877178]
[1741724304960,0.05375469,127.22,127.2,0.05877178]
[1741724305161,7.8629,127.22,127.2,0.05877178]
[1741724305459,0.05832383,127.22,127.21,7.8632]
[1741724306364,261.4727,127.29,127.2,53.01267348]
[1741724306564,226.8926,127.3,127.21,2.3273]
[1741724306765,194.2126,127.3,127.21,2.3273]
[1741724306965,7.8593,127.28,127.24,7.861]
[1741724307167,2.2126,127.3,127.24,32.7]
[1741724307462,7.8579,127.3,127.26,7.8595]
[1741724307759,0.05427905,127.28,127.26,7.91185768]
[1741724308157,0.05427905,127.28,127.26,7.91215768]
[1741724308366,0.05427905,127.28,127.26,0.05235768]
[1741724308664,0.05427905,127.28,127.26,18.04815938]
[1741724309067,194.1217,127.34,127.26,18.04815938]
[1741724309467,7.8574,127.31,127.27,40.539]
[1741724309666,7.8574,127.31,127.27,32.68]
[1741724309867,194.1217,127.34,127.27,32.68]
[1741724310067,7.8566,127.32,127.29,7.8581]
[1741724310267,7.9120234,127.32,127.29,7.91584348]
[1741724310463,0.0554234,127.32,127.29,0.05774348]
[1741724310662,7.857,127.31,127.29,0.05774348]
[1741724312063,17.9958017,127.31,127.29,0.05774348]
[1741724312770,7.8576,127.3,127.29,0.05774348]
[1741724313266,17.9958017,127.31,127.24,32.68]
[1741724313569,17.9958017,127.31,127.23,40.5416]
[1741724313967,7.8598,127.27,127.23,40.5416]
[1741724314168,7.8598,127.27,127.24,7.8612]
[1741724314671,0.05280643,127.27,127.24,0.05120583]
[1741724314873,0.05280643,127.27,127.24,18.04700753]
[1741724315261,17.9958017,127.33,127.24,18.04700753]
[1741724315463,17.9958017,127.33,127.24,17.9958017]
[1741724315865,7.8573,127.31,127.24,17.9958017]
[1741724316273,7.8573,127.31,127.26,17.9958017]
[1741724316478,0.0584814,127.29,127.28,7.8588]
[1741724316875,277.3358017,127.35,127.27,32.68]
[1741724317177,7.8567,127.32,127.29,7.8579]
[1741724318178,277.3358017,127.35,127.29,0.05181999]
[1741724318376,17.9958017,127.33,127.29,0.05181999]
[1741724318577,17.9958017,127.31,127.29,1.999e-05]
[1741724318878,7.8576,127.3,127.29,1.999e-05]
[1741724320074,194.36,127.3,127.21,2.2402]
[1741724320378,7.8623,127.23,127.19,7.8641]
[1741724320566,17.9958017,127.25,127.18,32.66]
[1741724320877,7.862,127.23,127.19,7.8641]
[1741724321376,0.05553502,127.22,127.2,0.05211856]
[1741724322275,17.9958017,127.21,127.15,2.2015]
[1741724322670,17.9958017,127.21,127.13,42.6451]
[1741724322870,7.8666,127.16,127.13,34.7776]
[1741724323072,17.9958017,127.19,127.12,373.87259784]
[1741724323474,7.8673,127.15,127.14,0.05648678]
[1741724325079,0.05514212,127.17,127.14,0.05648678]
[1741724325280,7.8666,127.16,127.14,0.05648678]
[1741724325985,0.05514212,127.17,127.14,0.05648678]
[1741724326177,0.05514212,127.17,127.14,32.71648678]
[1741724326981,0.05514212,127.17,127.16,7.8663]
[1741724327779,0.05514212,127.17,127.14,32.71648678]
[1741724328785,0.05514212,127.17,127.14,40.58378678]
[1741724329386,0.05514212,127.17,127.15,7.8668]
[1741724329586,0.05514212,127.17,127.14,32.71648678]
[1741724330085,7.8635,127.21,127.17,7.8651]
[1741724330278,35.55563002,127.25,127.17,32.66]
[1741724330480,39.3398,127.25,127.17,32.66]
[1741724330781,39.3398,127.25,127.19,7.8641]
[1741724331179,7.8622,127.23,127.19,7.8641]
[1741724331384,7.91390441,127.23,127.2,0.05203991]
[1741724331580,0.05170441,127.23,127.2,0.05203991]
[1741724332783,7.91400441,127.23,127.2,0.05203991]
[1741724333689,7.91400441,127.23,127.2,7.91543991]
[1741724333983,7.91400441,127.23,127.2,0.05203991]
[1741724333984,0.05170441,127.23,127.2,0.05203991]
[1741724334285,0.05170441,127.23,127.21,7.8631]
[1741724334481,0.05170441,127.23,127.2,0.05203991]
[1741724334882,0.05170441,127.23,127.2,32.71203991]
[1741724336691,0.05170441,127.23,127.22,7.8626]
[1741724337278,0.05170441,127.23,127.2,32.71203991]
[1741724337890,0.05170441,127.23,127.21,7.8629]
[1741724338090,0.05170441,127.23,127.2,32.71203991]
[1741724338489,0.05170441,127.23,127.21,7.8632]
[1741724338792,0.05170441,127.23,127.2,32.71203991]
[1741724339387,0.05170441,127.23,127.22,7.8626]
[1741724341085,0.05170441,127.23,127.2,32.71203991]
[1741724341391,0.05170441,127.23,127.2,0.05203991]
[1741724342896,7.8631,127.22,127.2,0.05203991]
[1741724343193,0.05170441,127.23,127.2,0.05203991]
[1741724343789,7.8626,127.22,127.2,0.05203991]
[1741724344292,0.05170441,127.23,127.2,0.05203991]
[1741724344496,28.92753443,127.23,127.2,0.05203991]
[1741724344797,28.87583002,127.21,127.12,34.9076]
[1741724344997,28.87583002,127.17,127.11,2.2124]
[1741724345199,28.87583002,127.17,127.1,34.8839]
[1741724345491,28.87583002,127.17,127.12,7.8684]
[1741724345694,28.87583002,127.17,127.1,34.8839]
[1741724345895,0.05976165,127.16,127.13,0.05698049]
[1741724347300,0.05976165,127.16,127.14,7.8674]
[1741724347500,0.05976165,127.16,127.13,0.05698049]
[1741724347791,7.8672,127.15,127.13,0.05698049]
[1741724348003,0.05976165,127.16,127.13,0.05698049]
[1741724348391,7.8675,127.14,127.13,0.05698049]
[1741724348792,0.05976165,127.16,127.13,0.05698049]
[1741724348997,7.8673,127.15,127.13,0.05698049]
[1741724349390,0.05976165,127.16,127.13,0.05698049]
[1741724349995,7.92636165,127.16,127.13,0.05698049]
[1741724350388,0.05976165,127.16,127.13,0.05698049]
[1741724350692,7.92606165,127.16,127.13,0.05698049]
[1741724350994,7.92606165,127.16,127.14,32.64]
[1741724351198,7.8669,127.15,127.14,32.64]
[1741724351497,0.05976165,127.16,127.14,32.64]
[1741724351697,7.92636165,127.16,127.14,32.64]
[1741724351899,0.05976165,127.16,127.14,32.64]
[1741724354203,7.92626165,127.16,127.14,32.64]
[1741724354900,7.92626165,127.16,127.13,32.69698049]
[1741724355101,0.05976165,127.16,127.13,32.69698049]
[1741724355304,0.05976165,127.16,127.14,2.3313]
[1741724355497,0.05976165,127.16,127.15,7.8669]
[1741724356106,0.05976165,127.16,127.14,2.3313]
[1741724356406,0.05976165,127.16,127.13,32.69698049]
[1741724356606,7.8675,127.14,127.13,0.05698049]